bitfinex/quotes_ETHUSD_20250810
["timestamp","ask_amount","ask_price","bid_price","bid_amount"]
[1754840539579,42.21634724,4222.5,4222.4,1e-08]
[1754840542058,38.59434724,4222.5,4222.4,1e-08]
[1754840542259,42.21634724,4222.5,4222.4,1e-08]
[1754840543957,44.17595956,4222.5,4222.4,1e-08]
[1754840544163,42.21634724,4222.5,4222.4,1e-08]
[1754840544360,42.72368283,4222.5,4222.4,1e-08]
[1754840544899,49.79368283,4222.5,4222.4,1e-08]
[1754840546114,50.01408661,4222.5,4222.4,1e-08]
[1754840546485,46.39208661,4222.5,4222.4,1e-08]
[1754840546804,49.49948661,4222.5,4222.4,1e-08]
[1754840546969,49.49943112,4222.5,4222.4,1e-08]
[1754840547169,40.71874724,4222.5,4222.4,1e-08]
[1754840547412,41.19214724,4222.5,4222.4,1e-08]
[1754840548274,42.7307774,4222.5,4222.4,1e-08]
[1754840548590,42.95150724,4222.5,4222.4,1e-08]
[1754840548999,5.91832133,4222.4,4222.3,1e-08]
[1754840549200,35.34271243,4222.4,4222.3,1e-08]
[1754840549406,36.19146106,4222.4,4222.3,1e-08]
[1754840549900,40.19146106,4222.4,4222.3,1e-08]
[1754840550684,39.34271243,4222.4,4222.3,1e-08]
[1754840551004,41.99827061,4222.4,4222.3,1e-08]
[1754840551203,42.63460216,4222.4,4222.3,1e-08]
[1754840551605,41.99827061,4222.4,4222.3,1e-08]
[1754840551978,42.08476118,4222.4,4222.3,1e-08]
[1754840552176,41.44827061,4222.4,4222.3,1e-08]
[1754840552377,42.47167061,4222.4,4222.3,1e-08]
[1754840552607,42.95157061,4222.4,4222.3,1e-08]
[1754840552806,41.44827061,4222.4,4222.3,1e-08]
[1754840552977,42.0849875,4222.4,4222.3,0.52660001]
[1754840553304,34.44827061,4222.4,4222.3,0.97510001]
[1754840553487,37.44827061,4222.4,4222.3,0.97510001]
[1754840553687,37.44827061,4222.4,4222.3,0.52660001]
[1754840555609,28.45694928,4222.4,4222.3,0.52660001]
[1754840555782,31.74081216,4222.4,4222.3,0.97510001]
[1754840556106,31.232082,4222.4,4222.3,0.97510001]
[1754840556809,27.609082,4222.4,4222.3,3.34347743]
[1754840557110,3.623,4222.4,4222.3,3.68976517]
[1754840560707,3.622,4222.4,4222.3,1.43978775]
[1754840561006,3.622,4222.4,4222.3,3.46187669]
[1754840561579,10.1184,4223.4,4222.3,1.09350001]
[1754840561800,34.96236649,4223.3,4223.0,0.1184]
[1754840562011,3.0,4223.1,4223.0,0.1184]
[1754840562207,34.74103206,4223.1,4223.0,0.1184]
[1754840562410,28.11903206,4223.1,4223.0,2.48638484]
[1754840562581,3.622,4223.1,4223.0,1.57894614]
[1754840562782,3.622,4223.1,4223.0,3.46148071]
[1754840563792,1e-08,4223.6,4223.2,2.36783621]
[1754840564110,3.622,4223.5,4223.2,2.36783621]
[1754840564315,37.609082,4223.4,4223.3,3.34291663]
[1754840564510,3.622,4223.4,4223.3,2.36781663]
[1754840564686,1e-08,4223.6,4223.5,2.36770451]
[1754840564887,3.62200001,4223.6,4223.5,2.36770451]
[1754840565078,3.62200001,4223.6,4223.5,3.34280451]
[1754840565709,1e-08,4223.6,4223.5,3.34280451]
[1754840566011,3.62200001,4223.6,4223.5,3.34280451]
[1754840566611,1e-08,4223.6,4223.5,3.34280451]
[1754840566816,3.62100001,4223.6,4223.5,3.34280451]
[1754840567917,3.62100001,4223.6,4223.5,2.89430451]
[1754840568121,3.62100001,4223.6,4223.5,2.36770451]
[1754840568296,31.23008201,4223.6,4223.3,0.1184]
[1754840568500,27.609082,4223.5,4223.4,2.85386057]
[1754840568701,31.230082,4223.5,4223.4,2.36776057]
[1754840568899,1e-08,4223.6,4223.5,2.36770451]
[1754840569108,3.62100001,4223.6,4223.5,2.36770451]
[1754840569922,3.62100001,4223.6,4223.5,2.85380451]
[1754840570291,3.62100001,4223.6,4223.5,0.4861]
[1754840570491,3.62100001,4223.6,4223.5,2.85380451]
[1754840571607,1e-08,4223.6,4223.5,2.85380451]
[1754840571805,1e-08,4223.6,4223.5,3.88478483]
[1754840574911,1e-08,4223.6,4223.5,3.43298483]
[1754840575111,1e-08,4223.6,4223.5,2.85380451]
[1754840575319,1e-08,4223.6,4223.5,3.30560451]
[1754840575527,1e-08,4223.6,4223.5,2.36770451]
[1754840575726,1e-08,4223.6,4223.5,2.85380451]
[1754840576430,1e-08,4223.6,4223.5,3.30560451]
[1754840577918,1e-08,4223.6,4223.5,3.88478483]
[1754840580130,1e-08,4223.6,4223.5,4.02686187]
[1754840580310,1e-08,4223.6,4223.5,7.02686187]
[1754840580629,1e-08,4223.6,4223.5,7.00318483]
[1754840583934,1e-08,4223.6,4223.5,6.55138483]
[1754840584228,1e-08,4223.6,4223.5,7.00318483]
[1754840584634,1e-08,4223.6,4223.5,6.06528483]
[1754840585263,1e-08,4223.6,4223.5,6.55138483]
[1754840585408,1e-08,4223.6,4223.5,7.00318483]
[1754840585733,1e-08,4223.6,4223.5,6.55138483]
[1754840585917,1e-08,4223.6,4223.5,7.00318483]
[1754840590841,1e-08,4224.1,4224.0,2.36742424]
[1754840591041,0.002,4224.7,4224.3,2.36725611]
[1754840591226,0.002,4224.7,4224.6,2.485488]
[1754840591540,0.002,4224.7,4224.6,9.104488]
[1754840591945,1e-08,4224.7,4224.6,10.042388]
[1754840592256,1e-08,4224.7,4224.6,11.52007242]
[1754840593108,1e-08,4224.7,4224.6,10.58217242]
[1754840593314,0.46030001,4224.7,4224.6,10.58217242]
[1754840593712,1e-08,4224.7,4224.6,10.58217242]
[1754840594422,1e-08,4224.9,4224.6,9.15298442]
[1754840594624,1e-08,4224.9,4224.8,2.48537595]
[1754840594837,1e-08,4224.9,4224.8,6.10437595]
[1754840595153,1e-08,4224.9,4224.8,7.59227595]
[1754840596214,1e-08,4225.2,4225.1,2.36680788]
[1754840596413,1e-08,4225.2,4225.1,8.98580788]
[1754840596622,1e-08,4225.2,4225.1,11.33800712]
[1754840596823,1e-08,4225.2,4225.1,10.88620712]
[1754840597020,1e-08,4225.2,4225.1,11.33800712]
[1754840598156,1e-08,4225.2,4225.1,10.88620712]
[1754840598365,1e-08,4225.2,4225.1,11.35080712]
[1754840598522,1e-08,4225.2,4225.1,11.90080712]
[1754840598725,1e-08,4225.9,4225.8,2.36641582]
[1754840598922,1e-08,4225.9,4225.8,10.12610678]
[1754840599122,1e-08,4225.9,4225.8,11.09480678]
[1754840599735,1e-08,4225.9,4225.8,10.63020678]
[1754840599935,1e-08,4225.9,4225.8,11.09480678]
[1754840600559,0.2495,4227.2,4226.7,2.36590873]
[1754840600860,0.2495,4227.2,4227.1,2.48408806]
[1754840601029,0.2495,4227.2,4227.1,6.10208806]
[1754840603245,0.2495,4227.2,4227.1,6.60618806]
[1754840603569,0.2495,4227.2,4227.1,6.10208806]
[1754840603925,0.6785,4227.2,4227.1,2.48408806]
[1754840604258,1.1452,4227.2,4227.1,2.48408806]
[1754840604729,28.754282,4227.2,4227.1,0.1184]
[1754840606966,28.754282,4227.2,4227.1,2.48408806]
[1754840607529,0.2495,4227.2,4227.1,2.48408806]
[1754840608752,0.2495,4227.2,4227.1,2.98818806]
[1754840608929,0.2495,4227.2,4227.1,2.48408806]
[1754840609461,0.6785,4227.2,4227.1,2.48408806]
[1754840609641,0.6785,4227.2,4227.1,3.37367614]
[1754840610759,0.2495,4227.2,4227.1,3.37367614]
[1754840611329,0.2495,4227.2,4227.1,3.87777614]
[1754840611572,0.2495,4227.2,4227.1,3.37367614]
[1754840612547,0.6785,4227.2,4227.1,3.37367614]
[1754840612863,0.6785,4227.2,4227.1,2.48408806]
[1754840613176,1e-08,4227.2,4227.1,2.36568806]
[1754840613352,1e-08,4227.2,4227.1,2.86978806]
[1754840613676,1e-08,4227.2,4227.1,2.36568806]
[1754840613991,0.42900001,4227.2,4227.1,5.98368806]
[1754840614147,0.42900001,4227.2,4227.1,2.36568806]
[1754840614353,0.89570001,4227.2,4227.1,2.36568806]
[1754840614548,1e-08,4227.2,4227.1,5.98468806]
[1754840614777,0.42900001,4227.2,4227.1,5.98468806]
[1754840614946,1e-08,4227.2,4227.1,6.81973614]
[1754840615155,1e-08,4227.2,4227.1,7.32383614]
[1754840616263,1e-08,4227.2,4227.1,6.81973614]
[1754840616577,0.42900001,4227.2,4227.1,5.98468806]
[1754840616778,28.50478201,4227.2,4227.1,2.36568806]
[1754840616993,28.50478201,4227.2,4226.4,3.622]
[1754840617147,28.504782,4227.1,4226.6,2.36593109]
[1754840617347,27.609082,4227.0,4225.8,0.710731]
[1754840617551,0.02369965,4226.9,4226.1,2.36623887]
[1754840617787,38.504782,4226.8,4225.5,3.623]
[1754840618000,28.504782,4226.7,4225.4,3.627]
[1754840618162,0.429,4226.7,4225.5,2.36658383]
[1754840618361,0.429,4226.7,4226.6,2.36596791]
[1754840618560,0.429,4226.7,4226.5,2.36601328]
[1754840618784,0.4667,4226.6,4226.5,2.36601328]
[1754840618994,0.429,4226.6,4226.5,2.36601328]
[1754840619565,1e-08,4227.2,4226.3,2.36613472]
[1754840619852,1e-08,4227.2,4226.6,2.36596483]
[1754840619853,0.429,4227.0,4226.6,2.36596483]
[1754840620053,28.075782,4226.9,4225.8,3.628]
[1754840620269,28.52848165,4226.8,4225.4,3.627]
[1754840620468,28.504782,4226.7,4225.4,3.627]
[1754840620688,28.504782,4226.6,4225.9,2.36631849]
[1754840620891,32.79339432,4226.5,4225.4,3.627]
[1754840621185,32.133782,4226.4,4225.7,2.36642708]
[1754840621357,27.609082,4226.3,4225.7,2.36642708]
[1754840621558,28.504782,4226.3,4225.7,2.36642708]
[1754840621758,27.609082,4226.2,4225.7,2.36642708]
[1754840621952,27.609082,4226.3,4225.8,2.36639779]
[1754840622184,0.8957,4226.1,4225.4,2.36663198]
[1754840622390,28.909082,4226.3,4225.3,2.36669313]
[1754840622391,28.52848165,4226.0,4225.3,2.36669313]
[1754840622608,27.609082,4225.9,4224.6,0.04]
[1754840622885,3.629,4225.8,4225.3,2.36664981]
[1754840623182,38.504782,4225.7,4225.3,2.48505304]
[1754840623382,27.609082,4225.6,4225.5,2.36658383]
[1754840623599,31.240082,4225.6,4225.3,0.1184]
[1754840623753,27.609082,4225.5,4225.3,0.1184]
[1754840623949,28.504782,4225.5,4225.3,0.1184]
[1754840624153,28.038082,4225.4,4225.3,0.1184]
[1754840624598,28.038082,4225.4,4225.3,2.48509585]
[1754840625054,28.504782,4225.4,4225.3,0.1184]
[1754840625256,29.16439432,4225.4,4224.8,2.36692925]
[1754840625599,28.504782,4225.3,4225.0,0.1184]
[1754840625900,27.609082,4225.2,4225.0,0.1184]
[1754840626201,28.504782,4225.2,4225.0,0.1184]
[1754840626405,27.609082,4225.1,4225.0,0.1184]
[1754840626587,28.038082,4225.1,4225.0,0.1184]
[1754840627162,28.504782,4225.1,4225.0,0.1184]
[1754840628090,28.504782,4225.1,4225.0,0.1194]
[1754840629887,28.504782,4225.1,4225.0,0.001]
[1754840629888,29.804782,4225.1,4225.0,0.001]
[1754840630387,29.338082,4225.1,4225.0,0.001]
[1754840630586,31.668082,4225.1,4225.0,0.001]
[1754840631087,28.038082,4225.1,4225.0,0.001]
[1754840631289,32.166782,4225.1,4225.0,0.001]
[1754840631597,34.53358988,4225.1,4225.0,0.001]
[1754840631767,35.08358988,4225.1,4225.0,0.001]
[1754840632087,28.536782,4225.1,4225.0,0.001]
[1754840632292,28.038082,4225.1,4225.0,0.001]
[1754840632492,31.239082,4225.1,4225.0,2.3678639]
[1754840633494,0.4444,4225.5,4225.1,2.36679579]
[1754840633670,31.240082,4225.4,4225.1,2.36679579]
[1754840633874,27.609082,4225.3,4225.1,2.36679579]
[1754840634465,27.609082,4225.3,4225.0,0.001]
[1754840634466,0.4444,4225.2,4225.0,0.001]
[1754840634662,41.241082,4225.1,4225.0,0.001]
[1754840634871,31.685482,4225.1,4225.0,0.001]
[1754840635214,27.609082,4225.1,4225.0,2.4862639]
[1754840635416,0.4444,4225.9,4225.3,2.3666799]
[1754840635569,0.4444,4225.9,4225.0,1.0713237]
[1754840635570,31.241082,4225.8,4225.6,2.36650534]
[1754840635765,27.609082,4225.7,4225.6,2.36650534]
[1754840636123,27.609082,4225.8,4225.7,2.36647182]
[1754840636269,3.632,4225.7,4225.6,2.36650534]
[1754840636468,31.241082,4225.7,4225.6,2.36650534]
[1754840636666,0.4444,4226.5,4225.6,0.4851509]
[1754840636972,31.241082,4226.4,4226.1,2.3662307]
[1754840637170,27.609082,4226.3,4226.2,2.36619185]
[1754840637899,28.053482,4226.3,4226.1,0.1184]
[1754840638070,31.685482,4226.2,4226.1,0.1184]
[1754840638271,32.184182,4226.2,4226.1,0.1184]
[1754840638518,32.184182,4226.2,4225.8,0.1184]
[1754840638814,28.053482,4226.1,4225.8,0.1184]
[1754840638983,31.241082,4226.0,4225.9,2.36635982]
[1754840639178,31.241082,4226.0,4225.8,2.48477242]
[1754840639383,3.632,4226.0,4225.9,2.36635982]
[1754840639574,31.241082,4226.0,4225.9,2.36635982]
[1754840640187,0.1184,4226.4,4225.8,0.1184]
[1754840640406,0.1184,4226.4,4226.3,2.36613586]
[1754840640606,0.57677099,4226.9,4226.8,2.36585596]
[1754840640772,0.57677099,4226.9,4226.8,2.95085596]
[1754840641811,0.57677099,4226.9,4226.8,3.40945596]
[1754840642709,0.57677099,4226.9,4226.8,2.95085596]
[1754840642908,0.57677099,4226.9,4226.8,3.48253485]
[1754840643075,0.57677099,4226.9,4226.8,3.01593485]
[1754840643574,0.57677099,4226.9,4226.8,2.48425596]
[1754840645487,0.57677099,4226.9,4226.8,2.95085596]
[1754840645806,0.57677099,4226.9,4226.8,3.40945596]
[1754840646018,0.57677099,4226.9,4226.8,2.95085596]
[1754840646224,0.57677099,4226.9,4226.8,2.48425596]
[1754840646374,0.57677099,4226.9,4226.8,2.96927485]
[1754840647174,0.57677099,4226.9,4226.8,3.43587485]
[1754840647774,0.57677099,4226.9,4226.8,3.89447485]
[1754840648900,0.57677099,4226.9,4226.8,3.43587485]
[1754840650316,0.57677099,4226.9,4226.8,3.89447485]
[1754840650521,0.57677099,4226.9,4226.8,3.43687485]
[1754840650706,0.57677099,4226.9,4226.8,2.97027485]
[1754840651029,0.57677099,4226.9,4226.8,2.48525596]
[1754840653689,1.02117099,4226.9,4226.8,2.48525596]
[1754840654493,29.12895299,4226.9,4226.8,0.1194]
[1754840654691,32.75595299,4226.9,4226.8,0.1194]
[1754840655536,32.25725299,4226.9,4226.8,0.1194]
[1754840656100,32.25725299,4226.9,4226.8,2.48525596]
[1754840656630,32.25725299,4226.9,4226.8,0.1194]
[1754840658565,32.25725299,4226.9,4226.8,2.48525596]
[1754840659542,32.25725299,4226.9,4226.8,0.1194]
[1754840661960,32.71115299,4226.9,4226.8,0.001]
[1754840662250,32.82955299,4226.9,4226.8,0.001]
[1754840664558,38.19535298,4226.9,4226.8,0.001]
[1754840664734,38.96637239,4226.9,4226.8,0.001]
[1754840665767,39.47597725,4226.9,4226.8,0.001]
[1754840672071,30.94850141,4226.9,4226.8,0.001]
[1754840672259,31.44910141,4226.9,4226.8,0.48]
[1754840672460,31.228082,4226.9,4226.8,2.84585596]
[1754840672675,31.228082,4226.9,4226.8,0.001]
[1754840672842,31.679482,4226.9,4226.8,0.001]
[1754840673170,38.27037842,4226.9,4226.8,0.001]
[1754840673369,38.78008795,4226.9,4226.8,0.001]
[1754840674441,38.10499152,4226.9,4226.8,0.001]
[1754840674762,38.3261952,4226.9,4226.8,0.001]
[1754840675970,38.7800952,4226.9,4226.8,0.001]
[1754840677679,42.3261952,4226.9,4226.8,0.001]
[1754840678781,35.33999521,4226.9,4226.8,0.48]
[1754840679078,31.45228568,4226.9,4226.8,0.48]
[1754840680279,31.231082,4226.9,4226.8,0.48]
[1754840680484,31.45235587,4226.9,4226.8,0.48]
[1754840683291,31.45052099,4226.9,4226.8,0.48]
[1754840685358,31.45052099,4226.9,4226.8,0.001]
[1754840685791,31.45052099,4226.9,4226.8,0.48]
[1754840686109,31.45061808,4226.9,4226.8,0.48]
[1754840686599,27.83061808,4226.9,4226.8,0.48]
[1754840686796,31.44961808,4226.9,4226.8,0.48]
[1754840686988,27.83061808,4226.9,4226.8,0.48]
[1754840687171,31.44961808,4226.9,4226.8,0.48]
[1754840687695,31.44961808,4226.9,4226.8,0.001]
[1754840688583,31.44961808,4226.9,4226.8,0.4913]
[1754840689512,34.32603712,4226.9,4226.8,0.001]
[1754840689962,34.77733712,4226.9,4226.8,0.001]
[1754840690607,34.32603712,4226.9,4226.8,0.001]
[1754840694479,34.77733712,4226.9,4226.8,0.001]
[1754840694680,38.32733712,4226.9,4226.8,0.001]
[1754840694909,38.92916729,4226.9,4226.8,0.001]
[1754840695314,39.77791592,4226.9,4226.8,0.001]
[1754840695713,39.77791592,4226.9,4226.3,0.001]
[1754840695714,38.92916729,4226.9,4226.3,0.001]
[1754840695880,6.12306772,4226.4,4226.3,0.001]
[1754840696220,38.21633502,4226.4,4226.3,0.001]
[1754840696379,39.13643502,4226.4,4226.3,0.001]
[1754840696579,43.13643502,4226.4,4226.3,0.001]
[1754840697213,43.68643502,4226.4,4226.3,0.001]
[1754840697417,43.04784717,4226.4,4226.3,0.001]
[1754840697778,43.04784717,4226.4,4225.9,0.001]
[1754840697779,2.36630383,4226.0,4225.9,0.001]
[1754840698002,35.27923485,4226.0,4225.9,0.001]
[1754840698228,36.68592276,4226.0,4225.9,0.001]
[1754840699875,36.04801441,4226.0,4225.9,0.001]
[1754840700077,34.99494096,4226.0,4225.9,0.001]
[1754840700310,35.44624096,4226.0,4225.9,0.001]
[1754840700782,34.93562191,4226.0,4225.9,0.001]
[1754840700983,35.44563376,4226.0,4225.9,0.001]
[1754840701313,31.37533376,4226.0,4225.9,0.001]
[1754840701489,32.07802993,4226.0,4225.9,0.4913]
[1754840701680,31.56801808,4226.0,4225.9,0.9589]
[1754840701885,31.44961808,4226.0,4225.9,0.9589]
[1754840702216,27.83061808,4226.0,4225.9,0.9589]
[1754840702379,27.83061808,4226.0,4225.9,3.44365982]
[1754840702579,31.228082,4226.0,4225.9,1.65831237]
[1754840702784,31.228082,4226.0,4225.9,1.0773]
[1754840703694,31.228082,4226.0,4225.9,3.44365982]
[1754840704122,0.1184,4226.5,4225.9,1.0773]
[1754840704291,31.228082,4226.4,4226.3,2.36613586]
[1754840704612,0.6506918,4227.1,4226.5,2.36599115]
[1754840704819,31.228082,4227.0,4226.6,0.4903]
[1754840704989,27.83029715,4226.9,4226.6,0.4903]
[1754840705196,31.44929715,4226.8,4226.7,0.4903]
[1754840706112,31.44929715,4226.8,4226.3,0.1184]
[1754840706312,28.3052968,4226.7,4226.3,0.1184]
[1754840706517,31.44929715,4226.6,4226.3,0.1184]
[1754840706717,27.63278165,4226.5,4226.3,0.1184]
[1754840706911,31.25178165,4226.4,4226.3,0.1184]
[1754840707117,31.228082,4226.4,4226.3,0.1184]
[1754840707814,32.229382,4226.4,4226.3,0.1184]
[1754840708014,2.36619937,4226.2,4225.9,0.001]
[1754840708216,31.37018165,4226.1,4225.9,0.001]
[1754840708383,27.83031431,4226.0,4225.9,0.001]
[1754840709110,30.19661814,4226.0,4225.9,0.001]
[1754840709495,33.64791814,4226.0,4225.9,0.001]
[1754840709695,34.70771754,4226.0,4225.9,0.001]
[1754840710022,35.17651754,4226.0,4225.9,0.001]
[1754840713694,47.01636368,4226.0,4225.9,0.001]
[1754840713896,46.37921284,4226.0,4225.9,0.001]
[1754840714095,47.0162139,4226.0,4225.9,0.001]
[1754840715123,50.6362139,4226.0,4225.9,0.001]
[1754840715625,49.99921284,4226.0,4225.9,0.001]
[1754840716925,46.6362139,4226.0,4225.9,0.001]
[1754840718827,46.1674139,4226.0,4225.9,0.001]
[1754840719134,44.64751284,4226.0,4225.9,0.001]
[1754840719339,44.51481754,4226.0,4225.9,0.001]
[1754840719906,49.06481754,4226.0,4225.9,0.001]
[1754840720111,49.06481754,4226.0,4225.9,0.4906]
[1754840720313,45.44481754,4226.0,4225.9,0.4906]
[1754840720615,34.44481754,4226.0,4225.9,0.9484]
[1754840720814,33.93501814,4226.0,4225.9,0.001]
[1754840720994,34.48501814,4226.0,4225.9,0.001]
[1754840721194,37.99451073,4226.0,4225.9,0.001]
[1754840721431,37.48501814,4226.0,4225.9,0.4906]
[1754840722334,37.99462067,4226.0,4225.9,0.001]
[1754840722836,37.99462067,4226.0,4225.9,0.4906]
[1754840723002,37.99462067,4226.0,4225.9,0.9484]
[1754840723328,34.45031431,4226.0,4225.9,0.9484]
[1754840723994,36.81661814,4226.0,4225.9,0.4906]
[1754840724403,36.81661814,4226.0,4225.9,0.001]
[1754840724833,37.32654189,4226.0,4225.9,0.001]
[1754840725038,37.32654189,4226.0,4225.9,0.4906]
[1754840725223,34.45036627,4226.0,4225.9,0.9484]
[1754840725433,34.45038823,4226.0,4225.9,0.9484]
[1754840725927,31.45038823,4226.0,4225.9,0.9484]
[1754840726341,27.609082,4226.0,4225.9,0.9484]
[1754840726648,3.62,4226.0,4225.9,3.31475982]
[1754840726810,31.229082,4226.0,4225.9,3.31475982]
[1754840727006,31.229082,4226.0,4225.9,0.9484]
[1754840727244,31.229082,4226.0,4225.9,3.31475982]
[1754840727445,7.07,4226.8,4226.2,2.3661556]
[1754840727630,31.45031773,4226.7,4226.3,0.4896]
[1754840727972,27.83031773,4226.6,4226.5,0.1184]
[1754840728329,27.83031773,4226.6,4226.5,0.608]
[1754840729818,27.83031773,4226.6,4226.5,0.1184]
[1754840730032,0.22123573,4226.6,4226.5,3.43182389]
[1754840730352,0.5322918,4227.1,4227.0,2.36574402]
[1754840730553,0.5322918,4227.1,4227.0,2.48414402]
[1754840730853,0.00200001,4227.2,4227.1,2.36568806]
[1754840731148,0.00200001,4227.2,4227.1,3.31308806]
[1754840732711,0.00200001,4227.2,4227.1,3.33674494]
[1754840732917,0.00200001,4227.2,4227.1,4.13176106]
[1754840736554,1e-08,4227.2,4227.1,10.75076106]
[1754840739222,1e-08,4227.2,4227.1,11.30076106]
[1754840741261,1e-08,4227.9,4227.2,5.91563209]
[1754840741468,1e-08,4227.9,4227.8,0.1184]
[1754840741675,1e-08,4227.9,4227.8,6.10169637]
[1754840741970,1e-08,4227.9,4227.8,7.04909637]
[1754840742326,1e-08,4228.1,4228.0,5.91518448]
[1754840742541,1e-08,4228.1,4228.0,7.49977257]
[1754840742762,1e-08,4228.1,4228.0,8.44717257]
[1754840743266,1e-08,4228.1,4228.0,6.94977257]
[1754840743556,1e-08,4228.1,4228.0,10.56777257]
[1754840743761,1e-08,4228.1,4228.0,11.05737257]
[1754840743962,1e-08,4228.1,4228.0,11.51517257]
[1754840745864,1e-08,4228.1,4228.0,11.51417257]
[1754840747373,1e-08,4228.1,4228.0,12.06417257]
[1754840747541,0.4513,4229.6,4229.5,2.36434566]
[1754840747733,0.5082,4229.9,4229.3,5.98144597]
[1754840747932,0.5082,4229.9,4229.3,6.57959057]
[1754840748134,0.5082,4229.9,4229.8,2.36417797]
[1754840748333,0.04,4229.9,4229.8,2.36417797]
[1754840749534,0.5082,4229.9,4229.8,2.36417797]
[1754840749734,0.04,4229.9,4229.8,2.36417797]
[1754840750059,0.9797,4229.9,4229.8,3.19872109]
[1754840750368,0.04,4229.9,4229.8,3.19872109]
[1754840753266,0.04,4229.9,4229.8,4.13282109]
[1754840753439,1e-08,4229.9,4229.8,7.13282109]
[1754840753641,1e-08,4229.9,4229.8,11.30082109]
[1754840754371,1e-08,4229.9,4229.8,7.13282109]
[1754840754552,1e-08,4229.9,4229.8,10.87122109]
[1754840754964,1e-08,4229.9,4229.8,7.25122109]
[1754840755146,1e-08,4229.9,4229.8,9.93812109]
[1754840755485,1e-08,4230.4,4230.3,2.36389854]
[1754840755634,1e-08,4230.4,4230.3,6.13668593]
[1754840755835,1e-08,4230.4,4230.3,9.76668593]
[1754840756035,0.93970001,4230.4,4230.3,5.99389854]
[1754840756443,0.93970001,4230.4,4230.3,6.11229854]
[1754840756855,0.46820001,4230.4,4230.3,6.11229854]
[1754840757792,0.93970001,4230.4,4230.3,6.11229854]
[1754840757935,1e-08,4230.4,4230.3,6.11229854]
[1754840758139,1e-08,4230.4,4230.3,6.95992593]
[1754840758746,1e-08,4230.4,4230.3,6.95892593]
[1754840758946,0.46820001,4230.4,4230.3,6.95892593]
[1754840759149,1e-08,4230.4,4230.3,6.95892593]
[1754840759459,1e-08,4230.4,4230.3,9.95892593]
[1754840759770,1e-08,4230.4,4230.3,10.89302593]
[1754840760636,0.04,4230.9,4230.7,2.36367504]
[1754840760955,1e-08,4230.9,4230.8,9.22998667]
[1754840761136,1e-08,4230.9,4230.8,9.34838667]
[1754840761751,1e-08,4230.9,4230.8,9.34738667]
[1754840762177,0.93970001,4230.9,4230.8,2.48201917]
[1754840762377,0.93970001,4230.9,4230.8,6.11201917]
[1754840762685,1e-08,4230.9,4230.8,6.11201917]
[1754840763182,1e-08,4230.9,4230.8,2.48201917]
[1754840763384,0.93970001,4230.9,4230.8,6.11301917]
[1754840763847,1e-08,4230.9,4230.8,2.48201917]
[1754840764194,1e-08,4230.9,4230.8,2.96659069]
[1754840764396,0.93970001,4230.9,4230.8,6.11301917]
[1754840764552,1e-08,4230.9,4230.8,6.11301917]
[1754840765164,1e-08,4230.9,4230.8,5.99461917]
[1754840765367,1e-08,4230.9,4230.8,6.11301917]
[1754840765573,0.46820001,4230.9,4230.8,3.3771407]
[1754840765849,0.93970001,4230.9,4230.8,2.48201917]
[1754840766054,0.93970001,4230.9,4230.8,6.11501917]
[1754840766253,0.93970001,4230.9,4230.8,2.48201917]
[1754840766770,0.93970001,4230.9,4230.8,0.1184]
[1754840766949,0.93970001,4230.9,4230.8,2.48201917]
[1754840768009,1e-08,4230.9,4230.8,2.48201917]
[1754840768296,1e-08,4230.9,4230.8,2.79226047]
[1754840768660,0.47150001,4230.9,4230.8,6.40062428]
[1754840768861,0.46820001,4230.9,4230.8,6.40062428]
[1754840769064,1e-08,4230.9,4230.8,6.40062428]
[1754840769487,1e-08,4230.9,4230.8,7.33472428]
[1754840770214,1e-08,4230.9,4230.8,10.33472428]
[1754840770705,1e-08,4230.9,4230.8,10.88472428]
[1754840772606,1e-08,4230.9,4230.8,6.31862428]
[1754840772808,1e-08,4230.9,4230.8,10.88672428]
[1754840773378,0.22020869,4232.8,4231.1,2.36341911]
[1754840773578,0.04,4232.9,4232.8,2.36250236]
[1754840773880,0.04,4232.9,4232.8,6.00150236]
[1754840773881,0.5082,4232.9,4232.8,6.00150236]
[1754840774300,0.9797,4232.9,4232.8,6.00150236]
[1754840775022,0.9797,4232.9,4232.8,3.639]
[1754840775180,0.04,4232.9,4232.8,6.00150236]
[1754840775377,0.04,4232.9,4232.8,6.84975059]
[1754840776303,0.9797,4232.9,4232.8,2.36250236]
[1754840776499,0.9797,4232.9,4232.8,3.64]
[1754840776710,0.9797,4232.9,4232.7,0.1184]
[1754840776914,0.26020294,4232.9,4232.7,3.7574]
[1754840777106,0.9397,4232.8,4232.7,3.7574]
[1754840777291,30.631568,4232.8,4232.7,0.1184]
[1754840777622,28.77663371,4232.8,4231.7,3.642]
[1754840777819,0.04,4232.9,4230.8,2.65022382]
[1754840777820,28.74733371,4232.7,4231.5,3.642]
[1754840777995,2.36277223,4232.4,4231.6,2.36316367]
[1754840778195,0.67196494,4232.9,4231.7,2.36311338]
[1754840778196,28.23976564,4232.3,4231.7,2.36311338]
[1754840778396,28.23976564,4232.3,4231.5,3.642]
[1754840778397,28.74761232,4232.2,4231.8,2.36303386]
[1754840778620,28.23976564,4232.1,4231.7,3.641]
[1754840778917,1.13068364,4232.0,4231.9,2.3629875]
[1754840779121,0.9104,4232.0,4231.7,3.641]
[1754840779285,10.22028364,4232.5,4231.7,3.641]
[1754840779483,0.9104,4231.9,4231.8,2.36306063]
[1754840780581,1.13068364,4231.9,4231.8,2.36306063]
[1754840780698,1.13068364,4231.9,4231.7,3.641]
[1754840780902,0.9104,4231.8,4231.7,3.641]
[1754840781720,0.9104,4231.8,4231.4,6.00223312]
[1754840781926,0.9104,4231.7,4231.5,2.36322]
[1754840782220,0.9104,4231.6,4230.5,2.3637408]
[1754840782427,0.02369965,4232.1,4230.5,2.3637408]
[1754840782428,0.9104,4231.5,4231.3,2.36332867]
[1754840782628,0.9104,4231.4,4231.0,3.639]
[1754840782830,0.4522,4231.3,4231.2,2.36339346]
[1754840783128,0.9104,4231.3,4231.2,2.36339346]
[1754840784734,0.9104,4231.3,4231.1,2.36344306]
[1754840784910,2.58378693,4231.8,4231.0,3.639]